bitfinex-derivatives/quotes_BTCF0:USTF0_20250309
["timestamp","ask_amount","ask_price","bid_price","bid_amount"]
[1741536383299,0.2303,82935.0,82926.0,0.2177]
[1741536383495,0.1206402,82906.0,82903.0,0.120644]
[1741536383802,0.01318496,82906.0,82905.0,0.12245085]
[1741536384001,6e-08,82906.0,82905.0,1.15987085]
[1741536384308,6e-08,82906.0,82905.0,1.30987085]
[1741536384498,6e-08,82906.0,82905.0,1.15987085]
[1741536385000,6e-08,82906.0,82905.0,1.30987085]
[1741536385215,6e-08,82906.0,82905.0,0.48325085]
[1741536385402,6e-08,82906.0,82905.0,0.00180925]
[1741536385606,6e-08,82906.0,82905.0,0.12245085]
[1741536386303,6e-08,82906.0,82905.0,0.08471748]
[1741536386703,0.2243,82911.0,82910.0,0.1206344]
[1741536387603,0.1069,82911.0,82910.0,0.2177544]
[1741536387800,0.00018087,82914.0,82913.0,0.12063]
[1741536388104,0.00018087,82914.0,82913.0,0.33833]
[1741536388300,0.00018087,82914.0,82913.0,0.70053]
[1741536388506,0.2243,82925.0,82922.0,0.0603079]
[1741536388806,0.0603085,82922.0,82921.0,0.1809218]
[1741536389098,0.0603085,82922.0,82893.0,0.2177]
[1741536389099,0.1206387,82907.0,82893.0,0.2177]
[1741536389307,0.3608,82915.0,82914.0,0.1206286]
[1741536389501,0.00018087,82915.0,82901.0,0.097]
[1741536389801,0.00018087,82915.0,82898.0,0.21791217]
[1741536389802,0.1206387,82907.0,82898.0,0.21791217]
[1741536390099,0.1206504,82899.0,82898.0,0.00018087]
[1741536390299,0.4814504,82899.0,82898.0,0.00018087]
[1741536390499,0.5784104,82899.0,82898.0,0.00018087]
[1741536390697,0.5784104,82899.0,82890.0,0.00180958]
[1741536390698,0.120662,82891.0,82890.0,0.00180958]
[1741536390898,0.481462,82891.0,82890.0,0.00180958]
[1741536391312,0.120662,82891.0,82890.0,0.00180958]
[1741536391512,0.1042,82893.0,82892.0,0.1206606]
[1741536391703,0.0603132,82916.0,82901.0,0.0603235]
[1741536391704,0.09696,82911.0,82901.0,0.0603235]
[1741536391898,0.1048,82907.0,82906.0,0.1206402]
[1741536392106,0.09696,82921.0,82913.0,0.12063]
[1741536392306,0.2252,82920.0,82914.0,0.2357286]
[1741536392616,0.2252,82920.0,82914.0,0.3327286]
[1741536393001,0.1206246,82917.0,82914.0,0.3327286]
[1741536393296,0.2252,82920.0,82906.0,0.57914]
[1741536393605,0.0603164,82912.0,82907.0,0.09684]
[1741536393804,0.345833,82911.0,82910.0,0.1206344]
[1741536394509,0.09684,82923.0,82908.0,0.0603186]
[1741536394705,0.09684,82923.0,82914.0,0.1206286]
[1741536394706,0.1142,82921.0,82914.0,0.1206286]
[1741536394908,0.1142,82921.0,82914.0,0.2173886]
[1741536395301,0.12080797,82915.0,82914.0,0.2173886]
[1741536395605,0.12080797,82915.0,82914.0,0.09676]
[1741536395904,0.12080797,82915.0,82912.0,0.09668]
[1741536395905,0.12063,82913.0,82912.0,0.09668]
[1741536396110,0.1142,82914.0,82912.0,0.09668]
[1741536396305,0.1142,82914.0,82913.0,0.12063]
[1741536396510,0.1142,82914.0,82913.0,0.33953]
[1741536396709,0.12063,82913.0,82912.0,0.09668]
[1741536397101,0.1206387,82907.0,82906.0,0.3383378]
[1741536397299,0.49376634,82907.0,82906.0,0.19053224]
[1741536397499,0.120642,82905.0,82902.0,0.060323]
[1741536397704,0.120642,82905.0,82904.0,0.1206416]
[1741536398007,0.00474184,82905.0,82898.0,0.06050677]
[1741536398303,0.1206504,82899.0,82898.0,0.00018087]
[1741536398701,0.13299067,82899.0,82898.0,0.00018087]
[1741536398903,0.01234027,82899.0,82898.0,0.12083267]
[1741536399610,0.01234027,82905.0,82904.0,0.1206431]
[1741536400008,0.01234027,82905.0,82904.0,0.2170831]
[1741536400220,0.01234027,82906.0,82905.0,0.1206416]
[1741536400512,0.01234027,82906.0,82905.0,0.4814416]
[1741536400817,0.00474184,82906.0,82905.0,0.5947416]
[1741536401011,0.00474184,82906.0,82905.0,0.4741]
[1741536401311,0.00474184,82906.0,82905.0,0.2339416]
[1741536401501,0.00474184,82908.0,82907.0,0.1206387]
[1741536401702,0.12537914,82908.0,82907.0,0.1206387]
[1741536401903,0.00474184,82908.0,82907.0,0.1206387]
[1741536402104,0.01235413,82908.0,82907.0,0.1206387]
[1741536402614,0.01235413,82908.0,82907.0,0.1133]
[1741536402615,0.13299143,82908.0,82907.0,0.1133]
[1741536402809,0.0593215,82904.0,82903.0,0.097]
[1741536403007,0.1799646,82904.0,82903.0,0.097]
[1741536403213,0.1799646,82904.0,82903.0,0.2176446]
[1741536403506,0.1206475,82901.0,82900.0,0.1206479]
[1741536403900,0.00474184,82904.0,82903.0,0.1206446]
[1741536404307,0.00474184,82904.0,82903.0,0.2294446]
[1741536404512,0.12538494,82904.0,82903.0,0.2294446]
[1741536404709,0.01239398,82904.0,82903.0,0.2294446]
[1741536405316,0.01239398,82904.0,82903.0,0.5902446]
[1741536405621,8e-08,82904.0,82903.0,0.5902446]
[1741536406318,0.10605687,82916.0,82914.0,0.1206286]
[1741536406520,0.10605687,82916.0,82914.0,0.5783486]
[1741536406915,0.10605687,82916.0,82914.0,0.2175486]
[1741536407217,0.10605687,82916.0,82914.0,0.17982337]
[1741536407522,0.12080797,82915.0,82914.0,0.08290337]
[1741536407729,0.00018087,82915.0,82914.0,0.08290337]
[1741536408620,0.00018087,82915.0,82914.0,0.44370337]
[1741536409520,7e-08,82915.0,82914.0,1.14743561]
[1741536410215,7e-08,82915.0,82914.0,1.27459213]
[1741536411524,7e-08,82915.0,82914.0,1.12459213]
[1741536412327,0.23612921,82915.0,82914.0,1.12459213]
[1741536412916,0.23612921,82915.0,82914.0,1.12359213]
[1741536413121,0.23712914,82915.0,82914.0,1.12359213]
[1741536413322,0.23712914,82915.0,82914.0,1.10753561]
[1741536413614,0.23712914,82915.0,82914.0,1.22263561]
[1741536414227,0.23712914,82915.0,82914.0,0.86043561]
[1741536414429,0.57905624,82915.0,82914.0,0.27343561]
[1741536414615,0.45842914,82915.0,82914.0,0.27343561]
[1741536414818,0.45842914,82915.0,82906.0,0.3622]
[1741536415020,0.1206387,82907.0,82906.0,0.5431535]
[1741536415237,0.1206387,82907.0,82906.0,0.6393535]
[1741536415417,0.2213,82908.0,82907.0,0.1206387]
[1741536416029,0.3419373,82908.0,82907.0,0.1206387]
[1741536416921,0.34976541,82908.0,82907.0,0.09347184]
[1741536417122,0.34976541,82908.0,82907.0,0.05574009]
[1741536417320,0.22912811,82908.0,82907.0,0.05574009]
[1741536417926,0.22600748,82908.0,82907.0,0.05574009]
[1741536418124,0.00470748,82908.0,82907.0,0.05574009]
[1741536418324,8e-08,82908.0,82907.0,0.47037233]
[1741536419135,8e-08,82908.0,82907.0,0.24627233]
[1741536419427,8e-08,82908.0,82907.0,0.46297233]
[1741536419631,8e-08,82908.0,82907.0,0.46397233]
[1741536419931,0.05868587,82908.0,82907.0,0.46397233]
[1741536420125,7e-08,82908.0,82907.0,0.82477233]
[1741536420321,0.1179,82922.0,82916.0,0.1206256]
[1741536420526,0.12621242,82939.0,82907.0,0.40823224]
[1741536420527,0.1077,82939.0,82922.0,0.1206169]
[1741536420730,0.1206016,82933.0,82922.0,0.1206169]
[1741536421029,0.1179,82936.0,82922.0,0.3373169]
[1741536421230,7e-08,82923.0,82922.0,0.89004914]
[1741536422833,7e-08,82923.0,82922.0,1.04004914]
[1741536423530,7e-08,82923.0,82922.0,1.25084914]
[1741536424128,0.17748367,82932.0,82922.0,1.25084914]
[1741536424129,0.17748367,82932.0,82926.0,0.1206111]
[1741536424330,7e-08,82932.0,82931.0,0.4814038]
[1741536424724,4e-08,82937.0,82936.0,0.1205966]
[1741536424931,4e-08,82937.0,82936.0,0.5771166]
[1741536425232,0.00761908,82937.0,82936.0,1.12984884]
[1741536425826,0.00761904,82937.0,82936.0,1.36584884]
[1741536426031,8e-08,82937.0,82936.0,1.36584884]
[1741536426332,8e-08,82937.0,82936.0,0.5771166]
[1741536426834,8e-08,82937.0,82936.0,1.12984884]
[1741536427029,0.1159,82949.0,82948.0,0.1205791]
[1741536427232,0.1159,82949.0,82948.0,0.2162991]
[1741536427233,0.2364777,82949.0,82948.0,0.2162991]
[1741536427434,0.1205922,82939.0,82938.0,0.00072]
[1741536427630,0.0602917,82945.0,82936.0,0.00064]
[1741536427631,0.09572,82945.0,82936.0,0.00064]
[1741536427835,0.1206038,82931.0,82930.0,0.00018087]
[1741536428033,0.1206038,82931.0,82930.0,0.12078617]
[1741536428232,0.1174,82938.0,82936.0,0.1205951]
[1741536428434,0.2379951,82938.0,82937.0,0.1205951]
[1741536429436,0.23,82938.0,82937.0,0.1205951]
[1741536429933,0.23,82938.0,82934.0,0.3608]
[1741536430143,0.23,82938.0,82937.0,0.1205951]
[1741536430830,0.23,82938.0,82937.0,0.4813951]
[1741536431132,0.23,82938.0,82937.0,0.5771151]
[1741536432233,0.12205977,82938.0,82937.0,0.5771151]
[1741536432430,0.00465977,82938.0,82937.0,0.5771151]
[1741536432839,0.1142,82943.0,82942.0,0.1205878]
[1741536433535,0.1142,82943.0,82938.0,0.2265]
[1741536433536,0.2124,82964.0,82938.0,0.2265]
[1741536433729,0.1808371,82964.0,82963.0,0.1205573]
[1741536433932,0.1123,82967.0,82961.0,0.1205573]
[1741536434137,0.2328526,82967.0,82966.0,0.1205529]
[1741536434636,0.1123,82967.0,82966.0,0.1205529]
[1741536434830,0.2197,82967.0,82966.0,0.1205529]
[1741536435031,0.2197,82967.0,82966.0,0.2162729]
[1741536435235,0.1074,82967.0,82966.0,0.2162729]
[1741536435543,0.3416515,82967.0,82966.0,0.2162729]
[1741536436035,0.3416515,82967.0,82966.0,0.2172729]
[1741536437634,0.3416515,82967.0,82966.0,0.001]
[1741536438143,0.3711,82967.0,82956.0,0.3608]
[1741536438439,0.3711,82967.0,82955.0,0.00018087]
[1741536438440,0.1205675,82956.0,82955.0,0.00018087]
[1741536438635,0.1205675,82956.0,82955.0,0.12074977]
[1741536439136,0.3429,82957.0,82956.0,0.1205675]
[1741536439343,0.2275,82957.0,82956.0,0.1205675]
[1741536439938,0.2275,82957.0,82956.0,0.09568]
[1741536439939,0.1124,82957.0,82956.0,0.09568]
[1741536440133,0.232966,82957.0,82956.0,0.09668]
[1741536440333,0.232966,82957.0,82956.0,0.2172475]
[1741536440539,0.232966,82957.0,82956.0,0.1215675]
[1741536440742,0.1124,82957.0,82956.0,0.1215675]
[1741536441440,0.1124,82957.0,82956.0,0.2356675]
[1741536441739,0.232966,82957.0,82956.0,0.1215675]
[1741536441945,0.1124,82957.0,82956.0,0.1215675]
[1741536442245,0.1124,82957.0,82956.0,0.2356675]
[1741536443038,0.18801174,82966.0,82963.0,0.1205573]
[1741536443345,0.1205588,82962.0,82961.0,0.2162402]
[1741536443534,0.1205617,82960.0,82959.0,0.1559609]
[1741536443839,0.18801174,82966.0,82964.0,0.1205559]
[1741536444035,0.18801174,82966.0,82965.0,0.3295344]
[1741536444235,0.18801174,82966.0,82965.0,0.20898]
[1741536444544,0.30856464,82966.0,82965.0,0.2162344]
[1741536444749,0.1205529,82966.0,82965.0,0.2162344]
[1741536445045,0.12609616,82966.0,82965.0,0.2162344]
[1741536445254,0.1205559,82964.0,82963.0,0.001]
[1741536445445,0.2162359,82964.0,82963.0,0.00024176]
[1741536445741,0.1205675,82956.0,82955.0,0.12074977]
[1741536446044,0.1205762,82950.0,82949.0,0.00180834]
[1741536446241,0.1205762,82950.0,82949.0,0.12238604]
[1741536446436,0.1205762,82950.0,82949.0,0.00180834]
[1741536446639,0.1195762,82950.0,82949.0,0.00180834]
[1741536446840,0.12411946,82950.0,82949.0,0.12238604]
[1741536447038,0.00454326,82950.0,82949.0,0.12238604]
[1741536447241,0.0602853,82954.0,82949.0,0.00180834]
[1741536447449,0.0602853,82954.0,82953.0,0.1205718]
[1741536447646,0.1757845,82955.0,82949.0,0.00180834]
[1741536447838,0.1205762,82950.0,82949.0,0.00180834]
[1741536448033,0.1205762,82950.0,82949.0,0.12238604]
[1741536448238,0.1155,82953.0,82952.0,0.1205733]
[1741536449244,0.1200273,82953.0,82952.0,0.2162533]
[1741536449546,0.0045273,82953.0,82952.0,0.3302533]
[1741536449945,0.0075273,82953.0,82952.0,0.3312533]
[1741536450138,0.1280991,82953.0,82952.0,0.09668]
[1741536450340,0.2466991,82953.0,82952.0,0.09668]
[1741536450537,0.04953248,82953.0,82952.0,0.09668]
[1741536450846,0.17010428,82953.0,82952.0,0.09668]
[1741536451042,0.17010428,82953.0,82952.0,0.001]
[1741536451247,0.22876262,82953.0,82952.0,0.001]
[1741536451454,0.68524262,82953.0,82952.0,0.001]
[1741536451642,0.1205878,82942.0,82935.0,0.09568]
[1741536451948,0.1205878,82942.0,82939.0,0.0602954]
[1741536452247,0.1205878,82942.0,82938.0,0.1205923]
[1741536452754,0.1205878,82942.0,82941.0,0.12077017]
[1741536452949,0.1205878,82942.0,82941.0,0.00018087]
[1741536453340,0.23137422,82942.0,82941.0,0.00018087]
[1741536453543,0.23037422,82942.0,82941.0,0.12077017]
[1741536453750,0.23037422,82942.0,82941.0,0.00018087]
[1741536454547,0.13469422,82942.0,82941.0,0.00018087]
[1741536454740,0.23037422,82942.0,82941.0,0.00018087]
[1741536454942,0.34537422,82942.0,82941.0,0.00018087]
[1741536455148,0.53533655,82942.0,82941.0,0.00018087]
[1741536455445,0.1205922,82939.0,82938.0,0.08305407]
[1741536456042,0.1205951,82937.0,82934.0,0.2285966]
[1741536456244,0.120598,82935.0,82934.0,0.2285966]
[1741536456746,0.346998,82935.0,82934.0,0.2285966]
[1741536457142,0.346998,82935.0,82934.0,0.108]
[1741536457448,0.345998,82935.0,82934.0,0.108]
[1741536458146,0.1206096,82927.0,82926.0,0.36098087]
[1741536458845,0.1206096,82927.0,82926.0,0.00018087]
[1741536459048,0.2152896,82927.0,82926.0,0.00018087]
[1741536459345,0.4476896,82927.0,82926.0,0.00018087]
[1741536460049,0.3520096,82927.0,82926.0,0.00018087]
[1741536460242,0.3520096,82927.0,82926.0,0.11278087]
[1741536461244,0.2324,82927.0,82926.0,0.23339197]
[1741536461453,0.3580096,82927.0,82926.0,0.11278087]
[1741536461654,0.2374,82927.0,82926.0,0.11278087]
[1741536461838,0.1211,82927.0,82926.0,0.23339197]
[1741536462043,0.2417096,82927.0,82926.0,0.23339197]
[1741536462548,0.1211,82927.0,82926.0,0.23339197]
[1741536462743,0.2417096,82927.0,82926.0,0.34799197]
[1741536462948,0.2417096,82927.0,82926.0,0.11278087]
[1741536463151,0.30036794,82927.0,82926.0,0.11278087]
[1741536464451,0.30036794,82927.0,82926.0,0.23339197]
[1741536464654,0.17975834,82927.0,82926.0,0.23339197]
[1741536465045,0.17975834,82927.0,82926.0,0.35049197]
[1741536465239,0.06365834,82927.0,82926.0,0.35049197]
[1741536465847,0.02632134,82927.0,82926.0,0.35049197]
[1741536466348,0.24549631,82936.0,82935.0,0.120598]
[1741536466549,0.36609291,82936.0,82935.0,0.216278]
[1741536466748,0.47979291,82936.0,82935.0,0.216278]
[1741536467253,0.24549631,82943.0,82935.0,0.09568]
[1741536467447,0.24549631,82943.0,82942.0,0.1205878]
[1741536468145,0.36608271,82943.0,82942.0,0.1205878]
[1741536468552,0.36608271,82943.0,82942.0,0.2323878]
[1741536468854,0.24549631,82943.0,82942.0,0.2323878]
[1741536469052,0.24549631,82943.0,82942.0,0.3280678]
[1741536469448,0.24549631,82943.0,82942.0,0.1118]
[1741536469648,0.36608271,82943.0,82942.0,0.3280678]
[1741536469846,0.24549631,82943.0,82942.0,0.3280678]
[1741536470448,0.24549631,82943.0,82942.0,0.5554678]
[1741536471051,0.24549631,82943.0,82942.0,0.74700004]
[1741536471347,0.28234781,82948.0,82947.0,0.1205806]
[1741536472452,0.1205791,82948.0,82947.0,0.1808702]
[1741536472952,0.1205791,82948.0,82947.0,0.2765502]
[1741536473548,0.1357368,82948.0,82947.0,0.09568]
[1741536473750,0.2582368,82948.0,82947.0,0.09568]
[1741536474056,0.2582368,82948.0,82942.0,0.48420844]
[1741536474057,0.1205864,82943.0,82942.0,0.48420844]
[1741536474254,0.1205864,82943.0,82942.0,0.19053224]
[1741536474557,0.2162664,82943.0,82942.0,0.19053224]
[1741536474750,0.1205966,82936.0,82935.0,0.2368958]
[1741536475264,0.1205942,82938.0,82937.0,0.1205936]
[1741536475452,0.1205966,82936.0,82935.0,0.1163]
[1741536475657,0.120598,82935.0,82934.0,0.2375966]
[1741536475856,0.241598,82935.0,82928.0,0.00180879]
[1741536476067,0.1206067,82929.0,82928.0,0.00180879]
[1741536476559,0.1196067,82929.0,82928.0,0.00180879]
[1741536476758,0.1206096,82927.0,82926.0,0.12079197]
[1741536476948,0.1206096,82927.0,82926.0,0.00018087]
[1741536477351,0.3470096,82927.0,82926.0,0.00018087]
[1741536478351,0.36223296,82927.0,82926.0,0.00018087]
[1741536480260,0.1206315,82912.0,82911.0,0.3608]
[1741536480557,0.1206402,82906.0,82905.0,0.1198]
[1741536480757,0.1195,82911.0,82910.0,0.1206344]
[1741536480948,0.1206234,82919.0,82918.0,0.1206219]
[1741536481154,0.1135,82926.0,82911.0,0.09564]
[1741536481356,0.1809462,82914.0,82913.0,0.1206298]
[1741536481555,0.1206315,82913.0,82912.0,0.1206288]
[1741536481759,0.1206111,82926.0,82925.0,0.1206111]
[1741536481967,0.1206204,82920.0,82919.0,0.0603101]
[1741536482159,0.1206242,82917.0,82916.0,0.18852592]
[1741536482463,0.1206315,82912.0,82911.0,0.09564]
[1741536482775,0.1206329,82911.0,82910.0,0.00018087]
[1741536482952,0.2422329,82911.0,82910.0,0.00018087]
[1741536483357,0.36297883,82911.0,82910.0,0.00018087]
[1741536483551,0.1206431,82904.0,82893.0,0.3608]
[1741536483853,0.12518903,82904.0,82893.0,0.3608]
[1741536484056,0.12518903,82904.0,82903.0,0.00029776]
[1741536484562,0.36298903,82904.0,82903.0,0.00029776]
[1741536484761,0.12614593,82904.0,82903.0,0.12094236]
[1741536485262,0.24678903,82904.0,82903.0,0.12094236]
[1741536485856,0.24678903,82904.0,82903.0,0.00029776]
[1741536486363,0.37178593,82904.0,82879.0,0.3608]
[1741536486562,0.37178593,82904.0,82871.0,0.3608]
[1741536486563,0.1206897,82872.0,82871.0,0.3608]
[1741536487064,0.12523563,82872.0,82871.0,0.3608]
[1741536487465,0.1206941,82869.0,82868.0,0.21610854]
[1741536487669,0.2163341,82869.0,82868.0,0.21610854]
[1741536487969,0.22088003,82869.0,82868.0,0.21610854]
[1741536488363,0.22088003,82869.0,82863.0,0.000181]
[1741536488364,0.1207013,82864.0,82863.0,0.000181]
[1741536488568,0.1207145,82855.0,82854.0,0.18892739]
[1741536488757,0.1207203,82851.0,82850.0,0.28754769]
[1741536489070,0.2164003,82851.0,82850.0,0.28754769]
[1741536489269,0.22094623,82851.0,82850.0,0.28754769]
[1741536489459,0.22094623,82851.0,82850.0,0.24527155]
[1741536489656,0.10022593,82851.0,82850.0,0.18899857]
[1741536489968,0.10022593,82851.0,82850.0,0.30972027]
[1741536490469,0.21994623,82851.0,82850.0,0.18899857]
[1741536490855,0.12526623,82851.0,82850.0,0.18899857]
[1741536491060,0.22094623,82851.0,82850.0,0.18899857]
[1741536491259,0.09568,82851.0,82850.0,0.18899857]
[1741536491565,0.09568,82858.0,82850.0,0.18899857]
[1741536491756,0.1207203,82851.0,82850.0,0.18899857]
[1741536491963,0.1207169,82854.0,82853.0,0.1207171]
[1741536492266,0.1212,82857.0,82851.0,0.1207202]
[1741536492466,0.1212,82857.0,82850.0,0.18899857]
[1741536492467,0.1214,82856.0,82850.0,0.18899857]
[1741536492869,0.1207203,82851.0,82850.0,0.18899857]
[1741536493363,0.1212,82855.0,82850.0,0.18899857]
[1741536493573,0.1212,82855.0,82850.0,0.1207206]
[1741536493758,0.1207175,82853.0,82851.0,0.1121]
[1741536493959,0.060358,82854.0,82851.0,0.1724599]
[1741536494169,0.1212,82855.0,82854.0,0.1207159]
[1741536494466,0.27162702,82858.0,82857.0,0.1207115]
[1741536494670,0.1207145,82855.0,82854.0,0.0603574]
[1741536494968,0.120713,82856.0,82855.0,0.1197]
[1741536495155,0.120713,82856.0,82855.0,0.2404145]
[1741536495477,0.00468355,82856.0,82855.0,0.1207145]
[1741536495766,0.12539655,82856.0,82855.0,0.1207145]
[1741536496166,0.00468355,82856.0,82855.0,0.2404145]
[1741536496376,0.13308348,82856.0,82855.0,0.2404145]
[1741536496970,0.01237048,82856.0,82855.0,0.2404145]
[1741536497760,0.13308348,82856.0,82855.0,0.1197]
[1741536497965,0.01237048,82856.0,82837.0,0.0992]
[1741536498267,0.1207378,82839.0,82833.0,0.19053224]
[1741536498462,0.0603666,82843.0,82834.0,0.3608]
[1741536498663,0.1207399,82838.0,82834.0,0.4815439]
[1741536498870,0.1207436,82835.0,82834.0,0.3608]
[1741536499263,0.1207436,82835.0,82832.0,0.1108]
[1741536499466,0.1207436,82835.0,82830.0,0.00707992]
[1741536499661,0.1207655,82820.0,82819.0,0.00064]
[1741536499868,0.1207655,82820.0,82770.0,0.00952867]
[1741536499869,0.6038467,82818.0,82770.0,0.00952867]
[1741536500171,0.6038467,82818.0,82776.0,0.0156389]
[1741536500172,0.3608,82778.0,82776.0,0.0156389]
[1741536500363,0.3608,82788.0,82776.0,0.0156389]
[1741536500563,0.1208267,82778.0,82777.0,0.2285]
[1741536500767,0.10508,82778.0,82777.0,0.2285]
[1741536500973,0.25029366,82778.0,82777.0,0.1177]
[1741536501161,0.1208399,82769.0,82768.0,0.00900492]
[1741536501673,0.6316399,82769.0,82768.0,1e-08]
[1741536501869,0.1208691,82749.0,82748.0,0.1196]
[1741536502063,0.0604294,82757.0,82748.0,0.1196]
[1741536502064,0.3608,82757.0,82748.0,0.1196]
[1741536502464,0.1208691,82749.0,82748.0,0.1196]
[1741536502662,0.07280018,82756.0,82748.0,0.1196]
[1741536502966,0.01237048,82756.0,82748.0,0.1196]
[1741536503167,0.4816691,82749.0,82748.0,0.1196]
[1741536503367,0.5908291,82749.0,82746.0,0.1104]
[1741536503669,0.1208822,82740.0,82739.0,0.22315153]
[1741536503871,0.4816822,82740.0,82739.0,0.15980006]
[1741536504072,0.3762328,82740.0,82739.0,0.10686107]
[1741536504271,0.50948548,82740.0,82739.0,0.07963446]
[1741536504569,0.38860328,82740.0,82739.0,1e-08]
[1741536504771,0.38860328,82740.0,82730.0,0.71858268]
[1741536504772,0.1208954,82731.0,82730.0,0.71858268]
[1741536504971,0.47504,82731.0,82724.0,0.00064]
[1741536505269,0.0604592,82716.0,82694.0,0.0604741]
[1741536505472,0.3608,82723.0,82722.0,0.1209085]
[1741536505680,0.2179,82730.0,82722.0,0.00129891]
[1741536506072,0.00018134,82731.0,82730.0,0.1208968]
[1741536506270,4e-08,82731.0,82730.0,0.1208968]
[1741536506573,0.01741249,82749.0,82748.0,0.1208705]
[1741536506877,0.2179,82769.0,82768.0,0.1208413]
[1741536507077,0.3608,82770.0,82769.0,0.2351399]
[1741536507267,0.0150281,82784.0,82769.0,0.1143]
[1741536507471,0.10512721,82786.0,82785.0,0.1208165]
[1741536507871,0.10512721,82786.0,82785.0,0.12211541]
[1741536508173,0.17734703,82805.0,82804.0,0.1207888]
[1741536508379,0.17594702,82805.0,82804.0,0.12244224]
[1741536508673,0.3608,82829.0,82811.0,0.0603891]
[1741536508873,0.3608,82837.0,82836.0,0.1207421]
[1741536509176,0.51824,82837.0,82788.0,0.00064]
[1741536509478,0.3608,82814.0,82786.0,0.00064]
[1741536509777,0.3608,82814.0,82773.0,0.0024522]
[1741536509778,0.3608,82814.0,82804.0,0.00018112]
[1741536510074,0.120789,82805.0,82804.0,0.1207881]
[1741536510275,0.0603924,82807.0,82782.0,0.0604103]
[1741536510473,0.0603924,82807.0,82801.0,0.00018112]
[1741536510474,0.1207917,82802.0,82801.0,0.00018112]
[1741536510674,0.00018112,82808.0,82805.0,0.0603934]
[1741536510875,0.00018112,82808.0,82807.0,0.1207844]
[1741536511076,0.1207917,82802.0,82801.0,0.00018112]
[1741536511267,0.3608,82803.0,82783.0,0.04831]
[1741536511581,0.3608,82785.0,82784.0,0.120818]
[1741536511773,0.3608,82785.0,82784.0,0.345418]
[1741536511975,0.57352,82804.0,82798.0,0.1207976]
[1741536512172,0.57352,82804.0,82799.0,0.2246]
[1741536512474,0.3608,82817.0,82808.0,0.0603909]
[1741536512775,0.21272,82824.0,82809.0,0.1117]
[1741536512983,0.21272,82824.0,82810.0,0.33409282]
[1741536513176,0.1207634,82822.0,82820.0,0.1207648]
[1741536513380,0.522,82827.0,82824.0,0.0603794]
[1741536513679,0.3608,82827.0,82826.0,0.1207567]
[1741536513872,0.21272,82843.0,82825.0,0.1211]
[1741536513873,0.00018112,82834.0,82833.0,0.1207465]
[1741536514070,0.2433411,82860.0,82859.0,0.1207086]
[1741536514270,0.2433411,82860.0,82859.0,0.06433688]
[1741536514970,0.0592411,82860.0,82858.0,0.1211]
[1741536515171,0.0592411,82860.0,82859.0,0.1207086]
[1741536515375,0.40685675,82864.0,82861.0,0.0603525]
[1741536515570,0.0016,82886.0,82885.0,0.1206708]
[1741536515771,0.1128,82899.0,82886.0,0.1206693]
[1741536515977,0.1,82900.0,82877.0,0.16104]
[1741536516176,0.1,82900.0,82886.0,0.1206693]
[1741536516480,0.060337,82883.0,82878.0,0.01807]
[1741536516777,0.1,82900.0,82878.0,0.01807]
[1741536516778,0.000181,82889.0,82881.0,0.1206751]
[1741536516978,0.2794867,82886.0,82884.0,0.1206715]
[1741536517176,0.2794867,82886.0,82878.0,0.01807]
[1741536517375,0.1206795,82879.0,82878.0,0.01807]
[1741536517582,0.1206736,82884.0,82883.0,0.1206737]
[1741536517879,0.00801189,82885.0,82884.0,0.1206722]
[1741536518183,0.0603354,82885.0,82874.0,0.0603428]
[1741536518370,0.1206789,82881.0,82880.0,0.1206764]
[1741536518687,0.1206789,82881.0,82869.0,0.33409282]
[1741536518688,0.2794867,82886.0,82869.0,0.33409282]
[1741536518879,0.2794867,82886.0,82875.0,0.1222]
[1741536519077,0.2794867,82886.0,82885.0,0.1206708]
[1741536519376,0.000181,82889.0,82888.0,0.1206664]
[1741536520377,0.01249031,82889.0,82888.0,0.1206664]
[1741536520579,0.01249031,82889.0,82886.0,0.16258728]
[1741536520884,0.01249031,82889.0,82888.0,0.1206664]
[1741536521083,0.000181,82889.0,82888.0,0.2844264]
[1741536521482,0.117,82911.0,82899.0,0.1206504]
[1741536521686,0.2794867,82917.0,82899.0,0.4814504]
[1741536521883,0.2794867,82917.0,82899.0,0.3608]
[1741536522083,0.0603159,82912.0,82908.0,0.3608]
[1741536522386,0.2794867,82917.0,82909.0,0.16356]
[1741536522582,0.2794867,82917.0,82912.0,0.0603153]
[1741536522583,0.1206284,82915.0,82912.0,0.0603153]
[1741536522778,0.2794867,82917.0,82916.0,0.1206256]
[1741536522978,0.000181,82918.0,82917.0,0.1206242]
[1741536523185,0.1205928,82939.0,82938.0,0.1205922]
[1741536523489,0.2794867,82943.0,82936.0,0.0602981]
[1741536523687,0.2794867,82943.0,82942.0,0.1205878]
[1741536524481,0.00018089,82951.0,82947.0,0.1205806]
[1741536524681,0.00018089,82951.0,82947.0,0.2829006]
[1741536524878,0.38893586,82958.0,82952.0,0.1205733]
[1741536525286,0.1214,82983.0,82950.0,0.0602877]
[1741536525287,0.0602647,82983.0,82950.0,0.0602877]
[1741536525487,0.120532,82981.0,82974.0,0.3608]
[1741536525692,0.1126,82980.0,82979.0,0.1205341]
[1741536525885,0.1205384,82976.0,82973.0,0.24220968]
[1741536526194,0.1205428,82973.0,82972.0,0.16148]
[1741536526489,0.2351,82975.0,82974.0,0.1205413]
[1741536526883,0.0602672,82979.0,82972.0,0.16148]
[1741536527090,0.5108,82984.0,82972.0,0.16148]
[1741536527386,0.33409282,83030.0,82972.0,0.16148]
[1741536527387,0.3608,83003.0,82972.0,0.16148]
[1741536527580,0.1501162,82988.0,82987.0,0.1205224]
[1741536527799,0.210377,82988.0,82978.0,0.33409282]
[1741536527988,0.1205312,82981.0,82980.0,0.1205]
[1741536528189,0.1205341,82979.0,82978.0,0.33409282]
[1741536528382,0.1152,82980.0,82965.0,0.1204]
[1741536528586,0.1205442,82972.0,82965.0,0.1204]
[1741536528785,0.15,82972.0,82967.0,0.0602755]
[1741536528982,0.15,82972.0,82969.0,0.1687577]
[1741536529192,0.1224,82980.0,82975.0,0.1205391]
[1741536529498,0.2724,82980.0,82973.0,0.0602714]
[1741536529692,0.1205371,82977.0,82975.0,0.1205389]
[1741536529891,0.1224,82976.0,82975.0,0.1205389]
[1741536530195,0.1152,82979.0,82978.0,0.1205355]
[1741536530394,0.1152,82979.0,82976.0,0.120537]
[1741536530598,0.2357345,82979.0,82978.0,0.1205355]
[1741536530799,0.1152,82979.0,82976.0,0.00989]
[1741536531186,0.15952,83001.0,82976.0,0.00989]
[1741536531390,0.5109162,82988.0,82987.0,0.1205224]
[1741536531585,0.3609162,82988.0,82987.0,0.1205224]
[1741536531793,0.0001162,82988.0,82987.0,0.2807624]
[1741536532986,0.0001162,82988.0,82987.0,0.16024]